[Event "NJSK 2022 Jeugd C"]
[Site "Almelo, Netherlands"]
[Date "2022.05.02"]
[Round "2.8"]
[White "Kumar, Prajit Sai"]
[Black "Agarwal, Pranav"]
[Result "1-0"]
[TimeControl "90min + 30sec/move"]
[WhiteElo "2042"]
[BlackElo "1531"]

1. d4 {[%clk 01:30:59]} c5 {[%clk 01:30:24]} {[%emt 00:00:37]} 2. d5 {[%clk
01:31:24]} {[%emt 00:00:05]} e6 {[%clk 01:30:47]} {[%emt 00:00:06]} 3. e4
{[%clk 01:31:46]} {[%emt 00:00:08]} exd5 {[%clk 01:31:11]} {[%emt 00:00:06]} 4.
exd5 {[%clk 01:32:09]} {[%emt 00:00:07]} Nf6 {[%clk 01:31:33]} {[%emt
00:00:08]} 5. Nf3 {[%clk 01:32:26]} {[%emt 00:00:13]} d6 {[%clk 01:31:42]}
{[%emt 00:00:21]} 6. Nc3 {[%clk 01:32:43]} {[%emt 00:00:13]} Bg4 {[%clk
01:31:52]} {[%emt 00:00:20]} 7. Be2 {[%clk 01:32:54]} {[%emt 00:00:18]} Be7
{[%clk 01:32:15]} {[%emt 00:00:09]} 8. O-O {[%clk 01:33:09]} {[%emt 00:00:14]}
Nbd7 {[%clk 01:32:41]} {[%emt 00:00:04]} 9. h3 {[%clk 01:32:27]} {[%emt
00:01:11]} Bh5 {[%clk 01:32:54]} {[%emt 00:00:17]} 10. Bf4 {[%clk 01:32:24]}
{[%emt 00:00:33]} a6 {[%clk 01:32:59]} {[%emt 00:00:26]} 11. a4 {[%clk
01:32:48]} {[%emt 00:00:06]} O-O {[%clk 01:33:22]} {[%emt 00:00:07]} 12. Re1
{[%clk 01:31:36]} {[%emt 00:01:41]} Re8 {[%clk 01:32:12]} {[%emt 00:01:41]} 13.
Nd2 {[%clk 01:28:20]} {[%emt 00:03:46]} Bg6 {[%clk 01:28:41]} {[%emt 00:04:01]}
14. a5 {[%clk 01:23:17]} {[%emt 00:05:33]} b5 {[%clk 01:23:43]} {[%emt
00:05:28]} 15. axb6 {[%clk 01:23:42]} {[%emt 00:00:06]} Nxb6 {[%clk 01:23:53]}
{[%emt 00:00:19]} 16. Nc4 {[%clk 01:22:15]} {[%emt 00:01:56]} Nxc4 {[%clk
01:21:33]} {[%emt 00:02:50]} 17. Bxc4 {[%clk 01:22:40]} {[%emt 00:00:06]} Qb6
{[%clk 01:21:51]} {[%emt 00:00:12]} 18. b3 {[%clk 01:20:55]} {[%emt 00:02:15]}
Qb4 {[%clk 01:19:32]} {[%emt 00:02:50]} 19. Bd2 {[%clk 01:19:48]} {[%emt
00:01:36]} Qb6 {[%emt 00:01:57]} 20. Ra2 {[%clk 01:18:15]} {[%emt 00:02:01]}
Ra7 {[%clk 01:16:29]} {[%emt 00:02:08]} 21. Qf3 {[%clk 01:15:59]} {[%emt
00:02:46]} Kf8 {[%clk 01:13:34]} {[%emt 00:03:23]} 22. Rea1 {[%clk 01:16:11]}
{[%emt 00:00:19]} Rea8 {[%clk 01:13:02]} {[%emt 00:01:03]} 23. Qe2 {[%clk
01:12:12]} {[%emt 00:04:28]} Nd7 {[%clk 01:08:17]} {[%emt 00:05:15]} 24. Bxa6
{[%clk 01:05:52]} {[%emt 00:06:51]} Nb8 {[%clk 00:54:07]} {[%emt 00:14:40]} 25.
Bd3 {[%clk 01:05:10]} {[%emt 00:01:11]} Nd7 {[%clk 00:51:09]} {[%emt 00:03:29]}
26. Bxg6 {[%clk 01:05:05]} {[%emt 00:00:34]} hxg6 {[%clk 00:51:28]} {[%emt
00:00:11]} 27. Rxa7 {[%clk 01:03:36]} {[%emt 00:02:00]} Rxa7 {[%clk 00:51:52]}
{[%emt 00:00:05]} 28. Re1 {[%clk 01:01:33]} {[%emt 00:02:33]} Nf6 {[%clk
00:51:23]} {[%emt 00:00:59]} 29. f4 {[%clk 00:57:41]} {[%emt 00:04:22]} Qb7
{[%clk 00:48:52]} {[%emt 00:03:01]} 30. Qf3 {[%clk 00:57:28]} {[%emt 00:00:43]}
Qb4 {[%clk 00:46:57]} {[%emt 00:02:26]} 31. Kh2 {[%clk 00:56:45]} {[%emt
00:01:11]} c4 {[%clk 00:46:05]} {[%emt 00:01:23]} 32. Qe3 {[%clk 00:49:41]}
{[%emt 00:07:34]} Rb7 {[%clk 00:44:55]} {[%emt 00:01:40]} 33. Rb1 {[%clk
00:49:18]} {[%emt 00:00:53]} Rc7 {[%clk 00:42:26]} {[%emt 00:02:59]} 34. Qd4
{[%clk 00:48:14]} {[%emt 00:01:34]} Nd7 {[%clk 00:37:07]} {[%emt 00:05:49]} 35.
Ne4 {[%clk 00:46:32]} {[%emt 00:02:12]} Qb7 {[%emt 00:01:27]} 36. Rb2 {[%clk
00:43:54]} {[%emt 00:03:06]} c3 {[%clk 00:35:10]} {[%emt 00:01:33]} 37. Bxc3
{[%clk 00:44:19]} {[%emt 00:00:05]} Nf6 {[%clk 00:35:23]} {[%emt 00:00:17]} 38.
Bd2 {[%clk 00:43:40]} {[%emt 00:01:08]} Qxd5 {[%clk 00:34:52]} {[%emt
00:01:02]} 39. Qxd5 {[%clk 00:44:04]} {[%emt 00:00:06]} Nxd5 {[%clk 00:35:11]}
{[%emt 00:00:10]} 40. c4 {[%clk 00:44:18]} {[%emt 00:00:16]} Nb6 {[%clk
00:34:23]} {[%emt 00:01:17]} 41. Ba5 {[%clk 00:43:58]} {[%emt 00:00:50]} Rb7
{[%clk 00:34:46]} {[%emt 00:00:09]} 42. Rd2 {[%clk 00:44:13]} {[%emt 00:00:15]}
Nc8 {[%clk 00:34:38]} {[%emt 00:00:38]} 43. b4 {[%clk 00:44:33]} {[%emt
00:00:10]} f5 {[%clk 00:34:39]} {[%emt 00:00:29]} 44. Nc3 {[%clk 00:44:21]}
{[%emt 00:00:42]} Nb6 {[%clk 00:33:51]} {[%emt 00:01:18]} 45. Bxb6 {[%clk
00:44:40]} {[%emt 00:00:10]} Rxb6 {[%clk 00:34:04]} {[%emt 00:00:16]} 46. Nd5
{[%clk 00:45:09]} Rc6 {[%clk 00:32:59]} {[%emt 00:01:36]} 47. Rc2 {[%clk
00:45:33]} {[%emt 00:00:06]} Rc8 {[%clk 00:32:52]} {[%emt 00:00:36]} 48. g3
{[%clk 00:45:51]} {[%emt 00:00:12]} Bd8 {[%clk 00:32:18]} {[%emt 00:01:03]} 49.
h4 {[%clk 00:46:09]} {[%emt 00:00:13]} Ke8 {[%clk 00:31:17]} {[%emt 00:01:31]}
50. Kg2 {[%clk 00:46:31]} {[%emt 00:00:08]} Kd7 {[%clk 00:31:38]} {[%emt
00:00:09]} 51. Kf3 {[%clk 00:46:30]} {[%emt 00:00:31]} Ra8 {[%clk 00:31:28]}
{[%emt 00:00:40]} 52. Rc3 {[%clk 00:45:41]} {[%emt 00:01:19]} Kc6 {[%clk
00:31:15]} {[%emt 00:00:43]} 53. Rd3 {[%clk 00:45:18]} {[%emt 00:00:52]} Ra4
{[%clk 00:29:55]} {[%emt 00:01:51]} 54. Ke2 {[%emt 00:03:49]} Ra1 {[%clk
00:28:30]} 55. b5+ {[%clk 00:43:59]} {[%emt 00:00:25]} Kc5 {[%clk 00:27:54]}
{[%emt 00:01:06]} 56. Ne3 {[%clk 00:44:23]} {[%emt 00:00:06]} Ra2+ {[%clk
00:26:53]} {[%emt 00:01:31]} 57. Kf3 {[%clk 00:44:43]} {[%emt 00:00:10]} Be7
{[%clk 00:26:44]} {[%emt 00:00:39]} 58. Rd5+ {[%clk 00:44:49]} {[%emt
00:00:24]} Kb6 {[%clk 00:26:32]} {[%emt 00:00:41]} 59. h5 {[%clk 00:44:47]}
{[%emt 00:00:33]} gxh5 {[%emt 00:01:40]} 60. Nxf5 {[%clk 00:44:47]} {[%emt
00:00:21]} Ra3+ {[%clk 00:24:14]} {[%emt 00:01:47]} 61. Kg2 {[%clk 00:45:03]}
{[%emt 00:00:14]} Bf8 {[%clk 00:23:41]} {[%emt 00:01:04]} 62. Nxd6 {[%clk
00:45:20]} {[%emt 00:00:12]} Rc3 {[%clk 00:23:36]} {[%emt 00:00:35]} 63. Kh3
{[%clk 00:44:48]} {[%emt 00:01:02]} g6 {[%clk 00:22:02]} {[%emt 00:02:03]} 64.
Nf7 {[%clk 00:44:29]} {[%emt 00:00:49]} Rxc4 {[%clk 00:19:57]} {[%emt
00:02:36]} 65. Ne5 {[%clk 00:44:54]} {[%emt 00:00:04]} Rc7 {[%clk 00:20:19]}
{[%emt 00:00:08]} 66. Nd7+ {[%clk 00:45:10]} {[%emt 00:00:15]} Kb7 {[%clk
00:18:21]} {[%emt 00:02:29]} 67. Nxf8 {[%clk 00:45:33]} {[%emt 00:00:06]} g5
{[%clk 00:18:39]} {[%emt 00:00:12]} 68. Rd7 {[%clk 00:45:54]} {[%emt 00:00:08]}
gxf4 {[%clk 00:18:48]} {[%emt 00:00:21]} 69. gxf4 {[%clk 00:46:07]} {[%emt
00:00:18]} Kc8 {[%clk 00:18:45]} {[%emt 00:00:34]} 70. Rxc7+ {[%clk 00:46:30]}
{[%emt 00:00:07]} Kxc7 {[%emt 00:00:05]} 71. f5 {[%clk 00:46:56]} {[%emt
00:00:04]} Kb6 {[%clk 00:19:39]} {[%emt 00:00:01]} 72. f6 {[%clk 00:47:13]}
{[%emt 00:00:13]} Kxb5 {[%clk 00:20:07]} {[%emt 00:00:02]} 73. f7 {[%clk
00:47:35]} {[%emt 00:00:08]} Kc6 {[%clk 00:20:36]} {[%emt 00:00:02]} 74. Ng6
{[%clk 00:47:56]} {[%emt 00:00:09]} h4 {[%clk 00:20:54]} {[%emt 00:00:12]} 75.
f8=Q {[%clk 00:48:18]} {[%emt 00:00:07]} Kd7 {[%clk 00:21:22]} {[%emt
00:00:02]} 76. Qe7+ {[%clk 00:48:36]} {[%emt 00:00:12]} Kc6 {[%clk 00:21:50]}
{[%emt 00:00:03]} 77. Qd8 {[%clk 00:48:54]} {[%emt 00:00:11]} Kc5 {[%clk
00:22:18]} {[%emt 00:00:02]} 78. Qd7 {[%clk 00:49:12]} {[%emt 00:00:13]} Kc4
{[%clk 00:22:44]} {[%emt 00:00:04]} 79. Qd6 {[%clk 00:49:36]} {[%emt 00:00:05]}
Kc3 {[%clk 00:23:13]} {[%emt 00:00:01]} 80. Qd5 {[%clk 00:49:57]} {[%emt
00:00:10]} Kc2 {[%clk 00:23:41]} {[%emt 00:00:01]} 81. Qd4 {[%clk 00:50:12]}
{[%emt 00:00:15]} Kb1 {[%clk 00:24:08]} {[%emt 00:00:02]} 82. Qd2 {[%clk
00:50:10]} {[%emt 00:00:33]} Ka1 {[%clk 00:24:36]} {[%emt 00:00:03]} 83. Ne5
{[%clk 00:50:32]} {[%emt 00:00:07]} Kb1 {[%clk 00:25:04]} {[%emt 00:00:03]} 84.
Nc4 {[%clk 00:50:53]} {[%emt 00:00:08]} Ka1 {[%clk 00:25:32]} {[%emt 00:00:03]}
85. Qb2# {[%clk 00:50:47]} {[%emt 00:00:05]} 1-0

[Event "NJSK 2022 Jeugd C"]
[Site "Almelo, Netherlands"]
[Date "2022.05.02"]
[Round "2.9"]
[White "Venema, Maxime"]
[Black "Fallaux, Storm"]
[Result "0-1"]
[TimeControl "90min + 30sec/move"]
[WhiteElo "1614"]
[BlackElo "1459"]

1. d4 {[%clk 01:30:58]} {[%emt 00:00:02]} Nf6 {[%clk 01:30:51]} {[%emt
00:00:09]} 2. c4 {[%clk 01:31:21]} {[%emt 00:00:07]} e6 {[%clk 01:31:16]}
{[%emt 00:00:04]} 3. Nc3 {[%clk 01:31:42]} {[%emt 00:00:10]} Bb4 {[%clk
01:31:42]} {[%emt 00:00:04]} 4. Bd2 {[%clk 01:32:00]} {[%emt 00:00:12]} Bxc3
{[%clk 01:30:55]} {[%emt 00:01:18]} 5. Bxc3 {[%clk 01:32:20]} {[%emt 00:00:09]}
b6 {[%clk 01:31:10]} {[%emt 00:00:15]} 6. Nf3 {[%clk 01:32:10]} {[%emt
00:00:40]} Bb7 {[%clk 01:31:23]} {[%emt 00:00:18]} 7. e3 {[%clk 01:32:33]}
{[%emt 00:00:07]} d6 {[%clk 01:31:39]} {[%emt 00:00:14]} 8. Bd3 {[%clk
01:32:07]} {[%emt 00:00:55]} Nbd7 {[%clk 01:31:38]} {[%emt 00:00:31]} 9. O-O
{[%emt 00:02:22]} Ne4 {[%clk 01:31:17]} 10. Qc2 {[%clk 01:30:56]} {[%emt
00:00:40]} f5 {[%clk 01:31:29]} {[%emt 00:00:17]} 11. d5 {[%clk 01:29:18]}
{[%emt 00:02:09]} exd5 {[%clk 01:27:14]} {[%emt 00:04:46]} 12. cxd5 {[%clk
01:26:51]} {[%emt 00:02:56]} Bxd5 {[%clk 01:24:57]} {[%emt 00:02:47]} 13. Bxg7
{[%clk 01:27:11]} {[%emt 00:00:10]} Rg8 {[%clk 01:25:21]} {[%emt 00:00:06]} 14.
Bh6 {[%clk 01:25:54]} {[%emt 00:01:47]} Ne5 {[%clk 01:22:40]} {[%emt 00:03:10]}
15. Nxe5 {[%clk 01:23:09]} {[%emt 00:03:15]} dxe5 {[%clk 01:22:49]} {[%emt
00:00:22]} 16. f3 {[%clk 01:23:23]} {[%emt 00:00:16]} Ng5 {[%clk 01:21:11]}
{[%emt 00:02:08]} 17. Bb5+ {[%clk 01:20:25]} {[%emt 00:03:27]} c6 {[%clk
01:12:03]} {[%emt 00:09:39]} 18. Bxc6+ {[%clk 01:19:25]} {[%emt 00:01:30]} Bxc6
{[%clk 01:11:43]} {[%emt 00:00:50]} 19. Qxc6+ {[%clk 01:19:50]} {[%emt
00:00:05]} Ke7 {[%clk 01:03:35]} {[%emt 00:08:38]} 20. Rad1 {[%clk 01:19:44]}
{[%emt 00:00:36]} Nh3+ {[%clk 01:03:47]} {[%emt 00:00:18]} 21. Kh1 {[%clk
01:18:10]} {[%emt 00:02:04]} Nf2+ {[%clk 01:04:05]} {[%emt 00:00:12]} 22. Kg1
{[%clk 01:18:10]} {[%emt 00:00:30]} Nxd1 {[%clk 01:04:10]} {[%emt 00:00:25]} 23.
Qb7+ {[%clk 01:17:39]} {[%emt 00:01:01]} Qd7 {[%clk 01:04:14]} {[%emt
00:00:26]} 24. Qxd7+ {[%clk 01:17:52]} {[%emt 00:00:17]} Kxd7 {[%clk 01:04:36]}
{[%emt 00:00:08]} 25. Rxd1+ {[%clk 01:18:19]} {[%emt 00:00:02]} Ke6 {[%clk
01:04:45]} {[%emt 00:00:22]} 26. f4 {[%clk 01:17:54]} {[%emt 00:00:54]} Rad8
{[%clk 01:02:58]} {[%emt 00:02:18]} 27. Rc1 {[%clk 01:17:57]} {[%emt 00:00:27]}
exf4 {[%clk 01:02:42]} {[%emt 00:00:46]} 28. Bxf4 {[%clk 01:18:18]} {[%emt
00:00:09]} Rc8 {[%clk 01:02:23]} {[%emt 00:00:49]} 29. Rc7 {[%clk 01:17:39]}
{[%emt 00:01:09]} Rxc7 {[%clk 01:02:39]} {[%emt 00:00:14]} 30. Bxc7 {[%emt
00:00:10]} Rc8 {[%clk 01:03:03]} 31. Bf4 {[%clk 01:18:25]} {[%emt 00:00:10]}
Rc1+ {[%clk 01:03:30]} {[%emt 00:00:03]} 32. Kf2 {[%clk 01:18:39]} {[%emt
00:00:16]} Rc2+ {[%clk 01:03:59]} 33. Kg3 {[%clk 01:18:44]} {[%emt 00:00:24]}
Rxb2 {[%clk 01:04:26]} {[%emt 00:00:03]} 34. a3 {[%clk 01:18:47]} {[%emt
00:00:28]} Ra2 {[%clk 01:04:46]} {[%emt 00:00:10]} 35. Bb8 {[%clk 01:18:52]}
{[%emt 00:00:26]} Rxa3 {[%clk 01:04:59]} {[%emt 00:00:17]} 36. Kf4 {[%clk
01:19:18]} {[%emt 00:00:04]} h6 {[%clk 01:05:21]} {[%emt 00:00:08]} 37. Be5
{[%clk 01:19:04]} {[%emt 00:00:42]} Ra2 {[%clk 01:05:04]} {[%emt 00:00:47]} 38.
Bb8 {[%clk 01:18:56]} {[%emt 00:00:40]} a5 {[%clk 01:05:21]} {[%emt 00:00:13]}
0-1

[Event "NJSK 2022 Jeugd C"]
[Site "Almelo, Netherlands"]
[Date "2022.05.02"]
[Round "2.10"]
[White "Folkers, Sono"]
[Black "Lopes, Samuel"]
[Result "0-1"]
[TimeControl "90min + 30sec/move"]
[WhiteElo "1519"]
[BlackElo "1600"]

1. d4 {[%clk 01:30:57]} {[%emt 00:00:04]} Nf6 {[%clk 01:30:53]} {[%emt
00:00:07]} 2. Bf4 {[%clk 01:31:18]} {[%emt 00:00:09]} g6 {[%clk 01:31:16]}
{[%emt 00:00:07]} 3. Nf3 {[%clk 01:31:31]} {[%emt 00:00:16]} Bg7 {[%clk
01:31:38]} {[%emt 00:00:09]} 4. e3 {[%clk 01:31:54]} {[%emt 00:00:07]} d6
{[%clk 01:31:56]} {[%emt 00:00:12]} 5. Bd3 {[%clk 01:31:54]} {[%emt 00:00:30]}
O-O {[%clk 01:32:13]} {[%emt 00:00:13]} 6. O-O {[%clk 01:32:03]} {[%emt
00:00:20]} Nbd7 {[%clk 01:31:51]} {[%emt 00:00:53]} 7. c4 {[%clk 01:32:12]}
{[%emt 00:00:21]} b6 {[%clk 01:31:59]} {[%emt 00:00:21]} 8. Nbd2 {[%clk
01:32:15]} {[%emt 00:00:27]} Bb7 {[%clk 01:32:12]} {[%emt 00:00:17]} 9. a4
{[%clk 01:31:31]} {[%emt 00:01:14]} a5 {[%clk 01:31:52]} {[%emt 00:00:50]} 10.
Qc2 {[%clk 01:30:07]} {[%emt 00:01:54]} Qe8 {[%clk 01:29:30]} {[%emt 00:02:53]}
11. Bg3 {[%clk 01:29:01]} {[%emt 00:01:35]} Nh5 {[%clk 01:27:23]} {[%emt
00:02:38]} 12. Rac1 {[%clk 01:27:44]} {[%emt 00:01:44]} Nxg3 {[%clk 01:26:01]}
{[%emt 00:01:55]} 13. fxg3 {[%clk 01:26:27]} {[%emt 00:01:46]} e5 {[%clk
01:25:49]} {[%emt 00:00:43]} 14. d5 {[%clk 01:24:25]} {[%emt 00:02:32]} Nc5
{[%clk 01:25:12]} {[%emt 00:01:06]} 15. b3 {[%clk 01:23:53]} {[%emt 00:01:03]}
f5 {[%clk 01:18:50]} {[%emt 00:06:51]} 16. e4 {[%clk 01:21:44]} {[%emt
00:02:39]} f4 {[%clk 01:17:24]} {[%emt 00:01:57]} 17. g4 {[%clk 01:20:09]}
{[%emt 00:02:03]} h6 {[%clk 01:15:41]} {[%emt 00:02:15]} 18. Be2 {[%clk
01:17:44]} {[%emt 00:02:54]} g5 {[%clk 01:14:55]} {[%emt 00:01:16]} 19. Ne1
{[%clk 01:15:04]} {[%emt 00:03:11]} Bc8 {[%clk 01:12:34]} {[%emt 00:02:51]} 20.
Nd3 {[%clk 01:13:31]} {[%emt 00:02:03]} Nd7 {[%clk 01:12:46]} {[%emt 00:00:18]}
21. h3 {[%clk 01:12:36]} {[%emt 00:01:25]} Nf6 {[%clk 01:12:46]} {[%emt
00:00:29]} 22. Nf2 {[%clk 01:10:22]} {[%emt 00:02:44]} Qg6 {[%clk 01:12:09]}
{[%emt 00:01:07]} 23. Bf3 {[%clk 01:07:29]} {[%emt 00:03:24]} Kf7 {[%clk
01:12:08]} {[%emt 00:00:31]} 24. Nb1 {[%clk 01:06:46]} {[%emt 00:01:14]} Rh8
{[%clk 01:11:35]} {[%emt 00:01:02]} 25. Nc3 {[%clk 01:06:40]} {[%emt 00:00:36]}
Bd7 {[%clk 01:09:11]} {[%emt 00:02:53]} 26. Qe2 {[%clk 01:05:39]} {[%emt
00:01:32]} h5 {[%clk 01:08:20]} {[%emt 00:01:21]} 27. Rc2 {[%clk 01:05:34]}
{[%emt 00:00:34]} hxg4 {[%clk 01:01:05]} {[%emt 00:07:45]} 28. Nxg4 {[%clk
01:04:51]} {[%emt 00:01:14]} Nh5 {[%clk 00:59:59]} {[%emt 00:01:37]} 29. Rfc1
{[%clk 01:03:44]} {[%emt 00:01:35]} Ng3 {[%clk 00:59:31]} {[%emt 00:00:58]} 30.
Qf2 {[%clk 01:03:24]} {[%emt 00:00:43]} Rh4 {[%clk 00:57:44]} {[%emt 00:02:24]}
31. Nb5 {[%clk 01:00:06]} {[%emt 00:03:49]} Rah8 {[%clk 00:56:11]} {[%emt
00:02:03]} 32. Rf1 {[%clk 00:50:33]} {[%emt 00:10:02]} Bxg4 {[%clk 00:55:03]}
{[%emt 00:01:37]} 33. Qxg3 {[%clk 00:47:19]} {[%emt 00:03:45]} fxg3 {[%clk
00:55:16]} {[%emt 00:00:18]} 34. Bxg4+ {[%clk 00:47:39]} {[%emt 00:00:09]} Ke7
{[%clk 00:55:01]} {[%emt 00:00:45]} 35. Bf5 {[%clk 00:46:51]} {[%emt 00:01:19]}
Qh6 {[%clk 00:54:07]} {[%emt 00:01:23]} 36. Be6 {[%clk 00:46:03]} {[%emt
00:01:18]} Rf8 {[%clk 00:53:43]} {[%emt 00:00:54]} 37. Rcc1 {[%clk 00:45:29]}
{[%emt 00:01:05]} g4 {[%clk 00:53:05]} {[%emt 00:01:07]} 38. Rxf8 {[%clk
00:44:46]} {[%emt 00:01:14]} Qe3+ {[%clk 00:52:27]} {[%emt 00:01:08]} 39. Kf1
{[%clk 00:43:18]} {[%emt 00:01:58]} Qxc1+ {[%clk 00:52:20]} {[%emt 00:00:36]}
0-1

[Event "NJSK 2022 Jeugd C"]
[Site "Almelo, Netherlands"]
[Date "2022.05.02"]
[Round "2.11"]
[White "Franco, Hugo"]
[Black "Terlouw, Wouter"]
[Result "0-1"]
[TimeControl "90min + 30sec/move"]
[WhiteElo "1441"]
[BlackElo "1578"]

1. e4 {[%clk 01:30:56]} {[%emt 00:00:03]} c5 {[%clk 01:30:54]} {[%emt
00:00:07]} 2. Nf3 {[%clk 01:30:58]} {[%emt 00:00:28]} Nc6 {[%clk 01:31:15]}
{[%emt 00:00:09]} 3. Bc4 {[%clk 01:30:28]} {[%emt 00:00:58]} g6 {[%clk
01:30:40]} {[%emt 00:01:05]} 4. d4 {[%clk 01:27:28]} {[%emt 00:03:31]} cxd4
{[%clk 01:30:42]} {[%emt 00:00:28]} 5. Nxd4 {[%clk 01:27:09]} {[%emt 00:00:48]}
Bg7 {[%clk 01:30:11]} {[%emt 00:01:02]} 6. Qf3 {[%clk 01:24:40]} {[%emt
00:02:58]} Ne5 {[%clk 01:28:54]} {[%emt 00:01:48]} 7. Qb3 {[%clk 01:23:30]}
{[%emt 00:01:40]} Qa5+ {[%clk 01:22:18]} {[%emt 00:07:07]} 8. c3 {[%clk
01:16:58]} {[%emt 00:07:01]} Nf6 {[%clk 01:17:51]} {[%emt 00:04:58]} 9. Bf4
{[%clk 01:15:46]} {[%emt 00:01:41]} Nxe4 {[%clk 01:11:01]} {[%emt 00:07:20]} 10.
Bxe5 {[%clk 01:12:42]} {[%emt 00:03:34]} Bxe5 {[%clk 01:10:42]} {[%emt
00:00:50]} 11. Bxf7+ {[%clk 01:11:53]} {[%emt 00:01:18]} Kf8 {[%clk 01:10:35]}
{[%emt 00:00:37]} 12. Bd5 {[%clk 01:10:19]} {[%emt 00:02:03]} Nf6 {[%clk
01:08:19]} {[%emt 00:02:48]} 13. Bf3 {[%clk 01:08:25]} {[%emt 00:02:23]} Bxd4
{[%clk 01:08:29]} {[%emt 00:00:21]} 14. O-O {[%clk 01:08:41]} {[%emt 00:00:14]}
Bc5 {[%clk 01:07:51]} {[%emt 00:01:05]} 15. Nd2 {[%clk 01:02:52]} {[%emt
00:06:20]} Qb6 {[%clk 01:06:48]} {[%emt 00:01:34]} 16. Qc4 {[%clk 00:59:50]}
{[%emt 00:03:32]} e6 {[%clk 01:04:22]} {[%emt 00:02:56]} 17. Qf4 {[%clk
00:56:15]} {[%emt 00:04:04]} Kg7 {[%clk 01:03:42]} {[%emt 00:01:10]} 18. Nc4
{[%clk 00:52:57]} {[%emt 00:03:49]} Qd8 {[%clk 00:58:50]} {[%emt 00:05:20]} 19.
a4 {[%clk 00:50:29]} {[%emt 00:03:00]} d5 {[%clk 00:57:56]} {[%emt 00:01:23]}
20. Rad1 {[%clk 00:49:38]} {[%emt 00:01:22]} Qe7 {[%clk 00:56:14]} {[%emt
00:02:11]} 21. b4 {[%clk 00:45:57]} {[%emt 00:04:12]} Bb6 {[%clk 00:54:29]}
{[%emt 00:02:10]} 22. Nxb6 {[%clk 00:44:25]} {[%emt 00:02:07]} axb6 {[%clk
00:54:17]} {[%emt 00:00:43]} 23. Rfe1 {[%clk 00:43:34]} {[%emt 00:01:20]} Qf7
{[%clk 00:46:31]} {[%emt 00:08:16]} 24. Qe5 {[%clk 00:33:03]} {[%emt 00:11:02]}
Rf8 {[%clk 00:43:30]} {[%emt 00:03:29]} 25. h4 {[%clk 00:30:07]} {[%emt
00:03:27]} h5 {[%clk 00:40:12]} {[%emt 00:03:47]} 26. Kh1 {[%clk 00:27:37]}
{[%emt 00:03:00]} Kg8 {[%clk 00:39:26]} {[%emt 00:01:16]} 27. Rg1 {[%clk
00:25:28]} {[%emt 00:02:39]} Ng4 {[%clk 00:33:55]} {[%emt 00:06:02]} 28. Bxg4
{[%clk 00:18:18]} {[%emt 00:07:40]} hxg4 {[%clk 00:33:59]} {[%emt 00:00:26]} 29.
Rd4 {[%clk 00:15:24]} {[%emt 00:03:25]} Qf6 {[%clk 00:31:42]} {[%emt 00:02:45]}
30. Qg3 {[%clk 00:10:26]} {[%emt 00:05:29]} e5 {[%clk 00:31:04]} {[%emt
00:01:08]} 31. Rxd5 {[%clk 00:10:01]} {[%emt 00:00:55]} Qxf2 {[%clk 00:31:18]}
{[%emt 00:00:15]} 32. Qxe5 {[%clk 00:09:44]} {[%emt 00:00:48]} Qxh4+ {[%clk
00:31:27]} {[%emt 00:00:21]} 33. Qh2 {[%clk 00:10:01]} {[%emt 00:00:12]} Qxh2+
{[%clk 00:31:26]} {[%emt 00:00:31]} 34. Kxh2 {[%clk 00:10:25]} {[%emt
00:00:07]} Rxa4 {[%clk 00:31:44]} 35. Re1 {[%clk 00:09:07]} {[%emt 00:02:00]}
Ra3 {[%clk 00:31:06]} {[%emt 00:01:09]} 36. Kg3 {[%clk 00:08:17]} {[%emt
00:01:19]} Rxc3+ {[%clk 00:30:33]} {[%emt 00:01:03]} 37. Kh4 {[%clk 00:08:39]}
{[%emt 00:00:07]} Kf7 {[%clk 00:27:54]} {[%emt 00:03:09]} 38. Rf1+ {[%clk
00:02:37]} {[%emt 00:06:34]} Bf5 {[%clk 00:27:43]} {[%emt 00:00:40]} 39. Rd7+
{[%clk 00:01:12]} {[%emt 00:01:55]} Ke6 {[%clk 00:27:48]} {[%emt 00:00:24]} 40.
Rxb7 {[%clk 00:01:05]} {[%emt 00:00:37]} Rh8+ {[%clk 00:27:53]} {[%emt
00:00:26]} 41. Kg5 {[%clk 00:01:21]} {[%emt 00:00:14]} Rh5+ {[%clk 00:28:07]}
{[%emt 00:00:15]} 42. Kf4 {[%clk 00:01:44]} {[%emt 00:00:07]} g5# {[%clk
00:28:23]} {[%emt 00:00:13]} 0-1